[Event "Turkish Super League 2019"]
[Site "Konya"]
[Date "2019.07.21"]
[Round "6"]
[White "Demircioglu, Emre"]
[Black "Secer, Ata"]
[Result "1/2-1/2"]
[ECO "D15"]
[WhiteElo "2242"]
[BlackElo "2324"]
[Annotator "NA"]
[PlyCount "79"]
[EventDate "2019.07.17"]
[EventType "team-tourn"]
[EventCountry "TUR"]
[SourceTitle "playchess.com"]
[Source "ChessBase"]
[SourceQuality "1"]
[TimeControl "40/5400+30:1800+30"]

1. d4 {[%emt 0:01:30]} d5 {[%emt 0:00:30]} 2. c4 {[%emt 0:00:30]} c6 {[%emt 0:00:00]} 3. Nf3 {[%emt 0:00:30]} Nf6 {[%emt 0:00:00]} 4. e3 {[%emt 0:02:30]} a6 {[%emt 0:00:30]} 5. Nc3 {[%emt 0:00:30]} b5 {[%emt 0:03:30]} 6. c5 {[%emt 0:01:30]} g6 {[%emt 0:00:00]} 7. Ne5 {[%emt 0:00:30]} Bg7 {[%emt 0:00:00]} 8. f4 {[%emt 0:01:30]} O-O {[%emt 0:00:30]} 9. Be2 {[%emt 0:00:30]} Nfd7 {[%emt 0:00:30]} 10. Nd3 {[%emt 0:01:30]} a5 {[%emt 0:01:30]} 11. O-O {[%emt 0:01:30]} Nf6 {[%emt 0:00:30]} 12. Bf3 {[%emt 0:10:30]} b4 {[%emt 0:07:30]} 13. Na4 {[%emt 0:01:30]} Nbd7 {[%emt 0:00:30]} 14. Nf2 {[%emt 0:08:30]} Ba6 {[%emt 0:03:30]} 15. Re1 {[%emt 0:00:30]} Qb8 {[%emt 0:02:30]} 16. Bd2 {[%emt 0:01:30]} Bb5 {[%emt 0:02:30]} 17. a3 {[%emt 0:05:30]} bxa3 {[%emt 0:02:30]} 18. bxa3 {[%emt 0:01:30]} Qc7 {[%emt 0:01:30]} 19. Rb1 {[%emt 0:09:30]} Rfb8 {[%emt 0:00:30]} 20. Qc2 {[%emt 0:01:30]} Ne8 {[%emt 0:04:30]} 21. Nc3 {[%emt 0:12:30]} Bc4 {[%emt 0:00:30]} 22. Be2 {[%emt 0:00:30]} Bxe2 {[%emt 0:01:30]} 23. Nxe2 {[%emt 0:00:30]} e6 {[%emt 0:01:30]} 24. Rxb8 {[%emt 0:04:30]} Rxb8 {[%emt 0:00:30]} 25. Rb1 {[%emt 0:00:30]} Rxb1+ {[%emt 0:03:30]} 26. Qxb1 {[%emt 0:00:30]} Bf6 {[%emt 0:03:30]} 27. a4 {[%emt 0:03:30]} Bd8 {[%emt 0:01:30]} 28. Nc1 {[%emt 0:00:30]} f6 {[%emt 0:04:30]} 29. Nb3 {[%emt 0:00:30]} Qa7 {[%emt 0:00:30]} 30. Qc2 {[%emt 0:13:36]} e5 {[%emt 0:03:30]} 31. Nd3 {[%emt 0:00:22]} exd4 {[%emt 0:03:30]} 32. exd4 {[%emt 0:00:38]} Qa6 {[%emt 0:03:30]} 33. Ndc1 {[%emt 0:00:28]} Ng7 {[%emt 0:04:30]} 34. Qd3 {[%emt 0:01:09]} Qa7 {[%emt 0:01:30]} 35. Ne2 {[%emt 0:03:02]} f5 {[%emt 0:00:30]} 36. g3 {[%emt 0:04:17]} Nf6 {[%emt 0:01:30]} 37. Kg2 {[%emt 0:00:07]} Ne6 {[%emt 0:00:30]} 38. Ng1 {[%emt 0:00:28]} Nf8 {[%emt 0:12:30]} 39. Nf3 {[%emt 0:00:38]} N8d7 {[%emt 0:00:30]} 40. Be1 {[%emt 0:00:00]} 1/2-1/2

[Event "Turkish Super League 2019"]
[Site "Konya"]
[Date "2019.07.21"]
[Round "6"]
[White "Akdogan, Alperen"]
[Black "Dolgun, Can"]
[Result "1-0"]
[ECO "E90"]
[WhiteElo "2193"]
[BlackElo "2064"]
[Annotator "NA"]
[PlyCount "77"]
[EventDate "2019.07.17"]
[EventType "team-tourn"]
[EventCountry "TUR"]
[SourceTitle "playchess.com"]
[Source "ChessBase"]
[SourceQuality "1"]
[TimeControl "40/5400+30:1800+30"]

1. d4 Nf6 2. Nf3 g6 3. c4 Bg7 4. Nc3 O-O 5. e4 d6 6. h3 e5 7. d5 Nh5 8. g3 a5 9. Be2 Na6 10. Nh2 f5 11. exf5 Rxf5 12. Be3 Rf8 13. Nf3 Nf6 14. g4 Nc5 15. Qc2 Qe7 16. O-O-O Nfd7 17. Nd2 c6 18. f3 Rf4 19. h4 Na6 20. Nde4 Ndc5 21. Qd2 Nxe4 22. Nxe4 c5 23. Bxf4 exf4 24. Qxf4 Be5 25. Qg5 Qf8 26. Kb1 Bd7 27. h5 Be8 28. a3 b6 29. hxg6 Bxg6 30. Bd3 Ra7 31. f4 Rg7 32. fxe5 Bxe4 33. Qh6 Bxh1 34. Rxh1 Qe7 35. exd6 Qf7 36. Bf5 Kf8 {[%emt 1:47:27]} 37. d7 {[%emt 1:47:12]} Qe7 {[%emt 0:00:30]} 38. Be6 {[%emt 0:00:30]} Qd6 {[%emt 0:00:30]} 39. Qf6+ {[%emt 0:00:08]} 1-0

[Event "Turkish Super League 2019"]
[Site "Konya"]
[Date "2019.07.21"]
[Round "6"]
[White "Karagollu, Ahmet"]
[Black "Caglar, Ahmet Ata"]
[Result "1-0"]
[ECO "B31"]
[WhiteElo "2135"]
[BlackElo "2051"]
[Annotator "NA"]
[PlyCount "59"]
[EventDate "2019.07.17"]
[EventType "team-tourn"]
[EventCountry "TUR"]
[SourceTitle "playchess.com"]
[Source "ChessBase"]
[SourceQuality "1"]
[TimeControl "40/5400+30:1800+30"]

1. e4 {[%emt 0:00:30]} c5 {[%emt 0:00:30]} 2. Nf3 {[%emt 0:00:30]} Nc6 {[%emt 0:00:30]} 3. Bb5 {[%emt 0:00:00]} g6 {[%emt 0:00:30]} 4. O-O {[%emt 0:00:00]} Bg7 {[%emt 0:00:00]} 5. Re1 {[%emt 0:00:30]} Nf6 {[%emt 0:00:00]} 6. Nc3 {[%emt 0:00:30]} O-O {[%emt 0:01:30]} 7. e5 {[%emt 0:01:30]} Ne8 {[%emt 0:00:00]} 8. d3 {[%emt 0:00:00]} Nc7 {[%emt 0:01:00]} 9. a4 {[%emt 0:01:00]} Ne6 {[%emt 0:17:30]} 10. h3 {[%emt 0:06:30]} Ned4 {[%emt 0:12:30]} 11. Bf4 {[%emt 0:08:30]} f6 {[%emt 0:07:30]} 12. exf6 {[%emt 0:27:30]} Bxf6 {[%emt 0:15:30]} 13. Nd5 {[%emt 0:12:30]} Nxf3+ {[%emt 0:14:30]} 14. Qxf3 {[%emt 0:00:30]} Bxb2 {[%emt 0:03:30]} 15. Bxc6 {[%emt 0:04:30]} dxc6 {[%emt 0:02:30]} 16. Nxe7+ {[%emt 0:01:30]} Kh8 {[%emt 0:03:03]} 17. d4 {[%emt 0:06:30]} Bxd4 {[%emt 0:09:01]} 18. Rad1 {[%emt 0:00:00]} Rf6 {[%emt 0:01:14]} 19. c3 {[%emt 0:11:02]} Qf8 {[%emt 0:01:00]} 20. Rxd4 {[%emt 0:01:53]} cxd4 {[%emt 0:01:10]} 21. Be5 {[%emt 0:00:06]} Kg7 {[%emt 0:00:26]} 22. Bxd4 {[%emt 0:00:54]} c5 {[%emt 0:01:50]} 23. Bxf6+ {[%emt 0:01:25]} Qxf6 {[%emt 0:00:01]} 24. Qe4 {[%emt 0:01:29]} Bd7 {[%emt 0:03:53]} 25. Nd5 {[%emt 0:02:34]} Qf7 {[%emt 0:02:50]} 26. Qe5+ {[%emt 0:00:05]} Kh6 {[%emt 0:00:00]} 27. Re4 {[%emt 0:01:14]} g5 {[%emt 0:00:52]} 28. h4 {[%emt 0:00:44]} Bf5 {[%emt 0:00:37]} 29. g4 {[%emt 0:01:16]} Rd8 {[%emt 0:00:31]} 30. Ne3 {[%emt 0:00:13]} 1-0

[Event "Turkish Super League 2019"]
[Site "Konya"]
[Date "2019.07.21"]
[Round "6"]
[White "Aydin, Hakan Arda"]
[Black "Eren, Ataberk"]
[Result "0-1"]
[ECO "C08"]
[WhiteElo "1956"]
[BlackElo "2295"]
[Annotator "NA"]
[PlyCount "84"]
[EventDate "2019.07.17"]
[EventType "team-tourn"]
[EventCountry "TUR"]
[SourceTitle "playchess.com"]
[Source "ChessBase"]
[SourceQuality "1"]
[TimeControl "40/5400+30:1800+30"]

1. e4 {[%emt 0:00:30]} e6 {[%emt 0:00:30]} 2. d4 {[%emt 0:00:30]} d5 {[%emt 0:00:00]} 3. Nd2 {[%emt 0:00:00]} c5 {[%emt 0:00:00]} 4. exd5 {[%emt 0:00:00]} exd5 {[%emt 0:00:00]} 5. Ngf3 {[%emt 0:01:30]} a6 {[%emt 0:00:00]} 6. Be2 {[%emt 0:02:30]} Nc6 {[%emt 0:00:30]} 7. O-O {[%emt 0:01:30]} cxd4 {[%emt 0:03:30]} 8. Nb3 {[%emt 0:02:30]} Nf6 {[%emt 0:00:30]} 9. Re1 {[%emt 0:03:30]} Be7 {[%emt 0:00:00]} 10. Nbxd4 {[%emt 0:00:30]} O-O {[%emt 0:00:00]} 11. c3 {[%emt 0:03:30]} h6 {[%emt 0:02:30]} 12. Bf4 {[%emt 0:04:30]} Bc5 {[%emt 0:02:30]} 13. Qb3 {[%emt 0:09:30]} Qb6 {[%emt 0:34:30]} 14. Qxb6 {[%emt 0:02:30]} Bxb6 {[%emt 0:03:30]} 15. Bd3 {[%emt 0:00:30]} Bd7 {[%emt 0:07:30]} 16. Rad1 {[%emt 0:11:30]} Rfe8 {[%emt 0:01:30]} 17. Nf5 {[%emt 0:07:30]} Rxe1+ {[%emt 0:10:30]} 18. Rxe1 {[%emt 0:00:00]} Nh5 {[%emt 0:12:13]} 19. Bd6 {[%emt 0:06:00]} Bxf5 {[%emt 0:03:44]} 20. Bxf5 {[%emt 0:00:00]} g6 {[%emt 0:00:00]} 21. Bc2 {[%emt 0:04:00]} Rd8 {[%emt 0:00:00]} 22. Ba3 {[%emt 0:00:30]} d4 {[%emt 0:02:46]} 23. cxd4 {[%emt 0:02:30]} Nxd4 {[%emt 0:00:25]} 24. Nxd4 {[%emt 0:00:30]} Rxd4 {[%emt 0:00:04]} 25. Rd1 {[%emt 0:00:30]} Rf4 {[%emt 0:00:10]} 26. Rd2 {[%emt 0:00:30]} Nf6 {[%emt 0:01:42]} 27. Bd6 {[%emt 0:06:30]} Rc4 {[%emt 0:00:34]} 28. b3 {[%emt 0:08:30]} Rc6 {[%emt 0:00:20]} 29. Ba3 {[%emt 0:01:30]} Ng4 {[%emt 0:01:16]} 30. Bd1 {[%emt 0:01:30]} Nxf2 {[%emt 0:10:19]} 31. Rxf2 {[%emt 0:04:14]} Rf6 {[%emt 0:00:03]} 32. Bf3 {[%emt 0:00:43]} g5 {[%emt 0:00:05]} 33. Bb2 {[%emt 0:02:48]} Rf5 {[%emt 0:00:04]} 34. Kf1 {[%emt 0:00:34]} Bxf2 {[%emt 0:00:04]} 35. Kxf2 {[%emt 0:02:50]} g4 {[%emt 0:00:04]} 36. Kg3 {[%emt 0:01:14]} gxf3 {[%emt 0:00:06]} 37. gxf3 {[%emt 0:00:04]} Rg5+ {[%emt 0:00:05]} 38. Kf2 {[%emt 0:00:00]} Rc5 {[%emt 0:00:04]} 39. Ke3 {[%emt 0:01:02]} Rc2 {[%emt 0:00:03]} 40. Be5 {[%emt 0:00:00]} Rxa2 {[%emt 0:00:00]} 41. Kd4 {[%emt 0:01:01]} Rb2 {[%emt 0:02:49]} 42. Kc4 {[%emt 0:00:30]} Rf2 {[%emt 0:00:00]} 0-1

[Event "Turkish Super League 2019"]
[Site "Konya"]
[Date "2019.07.21"]
[Round "6"]
[White "Ayan, Bengu Sena"]
[Black "Erdogan, Anil Berk"]
[Result "0-1"]
[ECO "A61"]
[WhiteElo "1885"]
[BlackElo "2116"]
[Annotator "NA"]
[PlyCount "88"]
[EventDate "2019.07.17"]
[EventType "team-tourn"]
[EventCountry "TUR"]
[SourceTitle "playchess.com"]
[Source "ChessBase"]
[SourceQuality "1"]
[TimeControl "40/5400+30:1800+30"]

1. d4 Nf6 2. c4 c5 3. d5 e6 4. Nc3 exd5 5. cxd5 d6 6. Nf3 g6 7. Bf4 a6 8. Nd2 b5 9. a4 Nh5 10. Be3 b4 11. Nce4 f5 12. g4 Nf6 13. gxf5 Nxe4 14. Nxe4 Bxf5 15. Ng3 Qf6 16. Qd2 Bg7 17. Nxf5 Qxf5 18. Bg2 O-O 19. O-O Nd7 20. f3 Nb6 21. Bh6 Bxh6 22. Qxh6 Nxd5 23. Qd2 Nf4 24. e3 Nxg2 25. Qxg2 Qe5 26. Qd2 Rfe8 27. e4 a5 28. Rad1 Rad8 29. b3 d5 30. exd5 Qe3+ 31. Kh1 Qxb3 32. d6 Qf7 33. Qg5 Qf5 34. Qh4 Rd7 35. Qc4+ Kg7 36. Rd5 Re5 37. Rd3 Qe6 38. Qa6 c4 39. Rd4 c3 40. Qc6 Re2 {[%emt 1:20:00]} 41. Qb5 {[%emt 1:52:30]} Rd2 {[%emt 0:45:34]} 42. Rd1 {[%emt 0:03:30]} Rxd1+ {[%emt 0:02:06]} 43. Rxd1 {[%emt 0:00:30]} c2 {[%emt 0:00:24]} 44. Rc1 {[%emt 0:00:30]} Qxd6 {[%emt 0:00:13]} 0-1

[Event "Turkish Super League 2019"]
[Site "Konya"]
[Date "2019.07.23"]
[Round "7"]
[White "Rozum, Ivan"]
[Black "Haznedaroglu, Kivanc"]
[Result "1-0"]
[ECO "A13"]
[WhiteElo "2583"]
[BlackElo "2448"]
[Annotator "ChessBase"]
[PlyCount "99"]
[EventDate "2019.07.17"]
[EventType "team-tourn"]
[EventCountry "TUR"]
[SourceTitle "playchess.com"]
[Source "ChessBase"]
[SourceQuality "1"]
[TimeControl "40/5400+30:1800+30"]

1. Nf3 Nf6 2. c4 e6 3. Nc3 d5 4. e3 Be7 5. b3 O-O 6. Bb2 b6 7. cxd5 exd5 8. d4 c5 9. Be2 Bb7 10. O-O Nbd7 11. Ne5 cxd4 12. exd4 Ne4 13. Nxe4 dxe4 14. Bc4 Nxe5 15. dxe5 Qxd1 16. Raxd1 Rfd8 17. Bc1 Kf8 18. Be3 Rxd1 19. Rxd1 Rd8 20. Rd4 Bc6 21. a4 Re8 22. Bb5 Bxb5 23. axb5 Bc5 24. Rxe4 Bxe3 25. Rxe3 Rc8 26. f4 Rc5 27. Kf2 Rxb5 28. Rc3 g5 29. Kf3 Ke7 30. g3 gxf4 31. gxf4 f6 32. Ke4 fxe5 33. fxe5 a5 34. Kf5 h5 35. Rc7+ Kd8 36. Rc3 Ke7 37. Rh3 Rb4 38. Rxh5 {[%emt 1:41:47]} Rxb3 {[%emt 1:31:17]} 39. Rh7+ {[%emt 0:00:30]} Kf8 {[%emt 0:00:30]} 40. h4 {[%emt 0:00:30]} a4 {[%emt 0:00:30]} 41. h5 {[%emt 0:03:43]} a3 {[%emt 0:04:13]} 42. Ra7 {[%emt 0:03:30]} Rh3 {[%emt 0:00:30]} 43. Kg4 {[%emt 0:03:30]} Re3 {[%emt 0:00:30]} 44. h6 {[%emt 0:02:30]} Kg8 {[%emt 0:01:30]} 45. Kf4 {[%emt 0:01:30]} Re1 {[%emt 0:19:30]} 46. Rxa3 {[%emt 0:01:30]} Kh7 {[%emt 0:00:30]} 47. Rh3 {[%emt 0:01:30]} b5 {[%emt 0:00:30]} 48. Kf5 {[%emt 0:00:00]} Rf1+ {[%emt 0:01:30]} 49. Ke4 {[%emt 0:04:00]} Rb1 {[%emt 0:00:30]} 50. e6 {[%emt 0:00:30]} 1-0

[Event "Turkish Super League 2019"]
[Site "Konya"]
[Date "2019.07.23"]
[Round "7"]
[White "Romanov, Evgeny"]
[Black "Kravtsiv, Martyn"]
[Result "1/2-1/2"]
[ECO "A06"]
[WhiteElo "2582"]
[BlackElo "2628"]
[Annotator "ChessBase"]
[PlyCount "60"]
[EventDate "2019.07.17"]
[EventType "team-tourn"]
[EventCountry "TUR"]
[SourceTitle "playchess.com"]
[Source "ChessBase"]
[SourceQuality "1"]
[TimeControl "40/5400+30:1800+30"]

1. Nf3 d5 2. b3 Nf6 3. Bb2 e6 4. e3 Be7 5. g4 Nxg4 6. Bxg7 Rg8 7. Bb2 Bh4 8. Nxh4 Qxh4 9. Qf3 {[%emt 0:41:30]} Nxh2 {[%emt 0:58:30]} 10. Qh3 {[%emt 0:18:30]} Qxh3 {[%emt 0:00:30]} 11. Bxh3 {[%emt 0:00:30]} Nf3+ {[%emt 0:00:30]} 12. Kf1 {[%emt 0:00:30]} Nc6 {[%emt 0:04:30]} 13. Bg2 {[%emt 0:06:30]} Ne1 {[%emt 0:00:30]} 14. Kxe1 {[%emt 0:00:30]} Rxg2 {[%emt 0:00:30]} 15. Rxh7 {[%emt 0:00:30]} b6 {[%emt 0:11:30]} 16. d3 {[%emt 0:06:30]} Ke7 {[%emt 0:11:24]} 17. Ba3+ {[%emt 0:03:30]} Kf6 {[%emt 0:00:25]} 18. Kf1 {[%emt 0:00:46]} Rg7 {[%emt 0:00:51]} 19. Rxg7 {[%emt 0:06:11]} Kxg7 {[%emt 0:00:01]} 20. Nc3 {[%emt 0:00:00]} Ba6 {[%emt 0:00:27]} 21. Ke2 {[%emt 0:01:24]} f6 {[%emt 0:00:33]} 22. Rg1+ {[%emt 0:03:46]} Kf7 {[%emt 0:00:30]} 23. Rh1 {[%emt 0:00:00]} Rg8 {[%emt 0:00:00]} 24. Rh7+ {[%emt 0:00:26]} Rg7 {[%emt 0:00:00]} 25. Rh8 {[%emt 0:01:07]} Rg8 {[%emt 0:00:01]} 26. Rh7+ {[%emt 0:00:18]} Rg7 {[%emt 0:00:02]} 27. Rh8 {[%emt 0:00:52]} Rg8 {[%emt 0:00:30]} 28. Rh7+ {[%emt 0:00:30]} Rg7 {[%emt 0:00:00]} 29. Rh8 {[%emt 0:00:00]} Rg8 {[%emt 0:00:02]} 30. Rh7+ {[%emt 0:00:22]} Rg7 {[%emt 0:00:00]} 1/2-1/2

[Event "Turkish Super League 2019"]
[Site "Konya"]
[Date "2019.07.23"]
[Round "7"]
[White "Dastan, Muhammed Batuhan"]
[Black "Nihal Sarin"]
[Result "1/2-1/2"]
[ECO "B56"]
[WhiteElo "2565"]
[BlackElo "2610"]
[Annotator "ChessBase"]
[PlyCount "95"]
[EventDate "2019.07.17"]
[EventType "team-tourn"]
[EventCountry "TUR"]
[SourceTitle "playchess.com"]
[Source "ChessBase"]
[SourceQuality "1"]
[TimeControl "40/5400+30:1800+30"]

1. e4 c5 2. Nf3 d6 3. d4 cxd4 4. Nxd4 Nf6 5. Nc3 Nc6 6. f3 e5 7. Nb3 Be7 8. Be3 Be6 9. Qe2 Qc8 10. O-O-O O-O 11. a3 Rb8 12. Kb1 b5 13. Nd5 Bd8 14. Nxf6+ Bxf6 15. Rxd6 Qc7 16. Rd1 a5 17. Nc5 Nd4 18. Bxd4 exd4 19. Nxe6 fxe6 20. g3 a4 21. e5 Bxe5 22. f4 Bf6 23. Qxe6+ Kh8 24. Bd3 b4 25. axb4 Rxb4 26. Kc1 Rb6 27. Qf5 g6 28. Qa5 {[%emt 1:43:45]} Rfb8 {[%emt 1:30:25]} 29. Rhe1 {[%emt 0:00:30]} Qc6 {[%emt 0:00:30]} 30. Be4 {[%emt 0:00:30]} Qd7 {[%emt 0:00:30]} 31. Qd5 {[%emt 0:00:30]} Qg7 {[%emt 0:03:50]} 32. Kd2 {[%emt 0:00:00]} Rxb2 {[%emt 0:03:33]} 33. Bd3 {[%emt 0:00:00]} Be7 {[%emt 0:02:20]} 34. Re6 {[%emt 0:00:15]} a3 {[%emt 0:01:21]} 35. Ke2 {[%emt 0:00:05]} Rd8 {[%emt 0:01:41]} 36. Qe4 {[%emt 0:01:31]} Bf8 {[%emt 0:00:41]} 37. Ra6 {[%emt 0:00:34]} Rb7 {[%emt 0:00:46]} 38. Kf3 {[%emt 0:00:18]} Ra7 {[%emt 0:00:58]} 39. Rxa7 {[%emt 0:01:17]} Qxa7 {[%emt 0:00:01]} 40. Qe6 {[%emt 0:00:00]} Qd7 {[%emt 0:00:00]} 41. Qxd7 {[%emt 0:08:15]} Rxd7 {[%emt 0:02:54]} 42. Bc4 {[%emt 0:00:00]} Ra7 {[%emt 0:07:30]} 43. Ba2 {[%emt 0:03:00]} Rc7 {[%emt 0:00:30]} 44. Rxd4 {[%emt 0:00:00]} Rxc2 {[%emt 0:00:30]} 45. Rd8 {[%emt 0:00:00]} Rxa2 {[%emt 0:00:30]} 46. Rxf8+ {[%emt 0:00:30]} Kg7 {[%emt 0:00:30]} 47. Ra8 {[%emt 0:00:00]} Rxh2 {[%emt 0:00:30]} 48. Rxa3 {[%emt 0:00:00]} 1/2-1/2

[Event "Turkish Super League 2019"]
[Site "Konya"]
[Date "2019.07.23"]
[Round "7"]
[White "Heberla, Bartlomiej"]
[Black "Gulbas, Cemil"]
[Result "1-0"]
[ECO "A57"]
[WhiteElo "2534"]
[BlackElo "2380"]
[Annotator "ChessBase"]
[PlyCount "39"]
[EventDate "2019.07.17"]
[EventType "team-tourn"]
[EventCountry "TUR"]
[SourceTitle "playchess.com"]
[Source "ChessBase"]
[SourceQuality "1"]
[TimeControl "40/5400+30:1800+30"]

1. d4 Nf6 2. c4 c5 3. d5 b5 4. Qc2 g6 5. e4 Bg7 6. Nf3 O-O 7. cxb5 a6 8. Nc3 d6 9. a4 e6 10. dxe6 fxe6 11. Bg5 {[%emt 0:50:30]} Qa5 {[%emt 0:50:30]} 12. Bd2 {[%emt 0:01:30]} Qd8 {[%emt 0:03:30]} 13. e5 {[%emt 0:02:30]} Nd5 {[%emt 0:03:30]} 14. exd6 {[%emt 0:10:30]} Nb4 {[%emt 0:10:30]} 15. Qe4 {[%emt 0:09:30]} Ra7 {[%emt 0:00:30]} 16. Bc4 {[%emt 0:02:30]} Qxd6 {[%emt 0:15:49]} 17. O-O {[%emt 0:01:30]} Rxf3 {[%emt 0:06:37]} 18. Qxf3 {[%emt 0:00:30]} Qxd2 {[%emt 0:00:06]} 19. Rad1 {[%emt 0:00:30]} Qg5 {[%emt 0:00:05]} 20. Qg3 {[%emt 0:00:00]} 1-0

[Event "Turkish Super League 2019"]
[Site "Konya"]
[Date "2019.07.23"]
[Round "7"]
[White "Rasulov, Vugar"]
[Black "Rakhmanov, Aleksandr"]
[Result "1/2-1/2"]
[ECO "C42"]
[WhiteElo "2534"]
[BlackElo "2615"]
[Annotator "RC"]
[PlyCount "160"]
[EventDate "2019.07.17"]
[EventType "team-tourn"]
[EventCountry "TUR"]
[SourceTitle "playchess.com"]
[Source "ChessBase"]
[SourceQuality "1"]
[TimeControl "40/5400+30:1800+30"]

1. e4 e5 2. Nf3 Nf6 3. Nxe5 d6 4. Nf3 Nxe4 5. d4 d5 6. Bd3 Bf5 7. O-O Be7 8. Re1 O-O 9. Nbd2 Nd6 10. Nf1 c6 11. Ng3 Bxd3 12. Qxd3 Na6 13. Bf4 Nc7 14. Nf5 Nxf5 15. Bxc7 Qxc7 16. Qxf5 g6 17. Qd3 Bf6 18. c3 Rfe8 19. g3 Kg7 20. Kg2 h5 21. h4 Qd6 22. Re2 Rxe2 23. Qxe2 Qe7 24. Qxe7 Bxe7 25. Re1 Bd6 26. Re2 a5 27. Ne1 f6 28. Nd3 Kf7 29. Kf3 b6 30. Nf4 Rc8 31. Ng2 Bf8 32. Nf4 Bh6 33. Re1 Bf8 34. Re2 Bh6 35. Re1 Rd8 36. Re2 Rd7 37. Re1 Rd8 38. Re2 Rb8 39. Re1 Ra8 40. Re2 Rb8 41. Re1 Bxf4 42. Kxf4 c5 43. f3 cxd4 44. cxd4 Rc8 45. Re3 Rc4 46. Rd3 b5 47. Rd2 Rc1 48. Rd3 Rc4 49. g4 hxg4 50. fxg4 a4 51. b3 axb3 52. axb3 Rc1 53. Rd2 Re1 54. Kf3 Re4 {[%emt 2:09:17]} 55. Kg3 {[%emt 1:12:30]} Ke6 {[%emt 0:04:42]} 56. b4 {[%emt 0:04:30]} f5 {[%emt 0:11:24]} 57. gxf5+ {[%emt 0:00:30]} gxf5 {[%emt 0:00:22]} 58. Rd3 {[%emt 0:05:30]} Rg4+ {[%emt 0:01:21]} 59. Kh3 {[%emt 0:00:00]} Kf6 {[%emt 0:00:00]} 60. Rd2 {[%emt 0:01:00]} Rf4 {[%emt 0:01:11]} 61. Rd3 {[%emt 0:01:30]} Re4 {[%emt 0:00:17]} 62. Rd2 {[%emt 0:06:30]} Re3+ {[%emt 0:00:30]} 63. Kh2 {[%emt 0:00:00]} f4 {[%emt 0:00:08]} 64. Rg2 {[%emt 0:00:00]} Kf5 {[%emt 0:00:23]} 65. h5 {[%emt 0:01:30]} Re8 {[%emt 0:01:22]} 66. Kh3 {[%emt 0:01:30]} f3 {[%emt 0:00:44]} 67. Rg7 {[%emt 0:00:30]} Kf4 {[%emt 0:00:22]} 68. h6 {[%emt 0:00:30]} Re6 {[%emt 0:01:44]} 69. Rf7+ {[%emt 0:00:30]} Ke3 {[%emt 0:00:00]} 70. h7 {[%emt 0:00:00]} Rh6+ {[%emt 0:00:28]} 71. Kg3 {[%emt 0:00:00]} f2 {[%emt 0:00:23]} 72. Re7+ {[%emt 0:00:30]} Kxd4 {[%emt 0:00:06]} 73. Kxf2 {[%emt 0:00:00]} Kc4 {[%emt 0:00:25]} 74. Ke3 {[%emt 0:02:00]} Kxb4 {[%emt 0:00:17]} 75. Kd4 {[%emt 0:00:30]} Rh5 {[%emt 0:00:15]} 76. Rb7 {[%emt 0:00:00]} Ka4 {[%emt 0:01:14]} 77. Kc5 {[%emt 0:01:00]} d4+ {[%emt 0:00:59]} 78. Kxd4 {[%emt 0:00:30]} b4 {[%emt 0:00:00]} 79. Kc4 {[%emt 0:01:30]} Rh4+ {[%emt 0:00:20]} 80. Kc5 {[%emt 0:00:30]} Rh5+ {[%emt 0:01:01]} 1/2-1/2

[Event "Turkish Super League 2019"]
[Site "Konya"]
[Date "2019.07.23"]
[Round "7"]
[White "Ali Marandi, Cemil Can"]
[Black "Tarlabasi, Emirhan"]
[Result "1-0"]
[ECO "D61"]
[WhiteElo "2527"]
[BlackElo "2352"]
[Annotator "ChessBase"]
[PlyCount "119"]
[EventDate "2019.07.17"]
[EventType "team-tourn"]
[EventCountry "TUR"]
[SourceTitle "playchess.com"]
[Source "ChessBase"]
[SourceQuality "1"]
[TimeControl "40/5400+30:1800+30"]

1. d4 d5 2. c4 e6 3. Nf3 Nf6 4. Bg5 Be7 5. Qc2 O-O 6. e3 Nbd7 7. Nc3 h6 8. h4 c5 9. Bxf6 Nxf6 10. O-O-O Qa5 11. Ne5 cxd4 12. exd4 Bb4 13. Rh3 Bxc3 14. Rxc3 dxc4 15. g4 Nd5 16. Ra3 Qd8 17. Bxc4 Qxh4 18. Kb1 b5 19. Bxd5 exd5 20. Rg1 Qg5 21. Rh3 Qf4 22. Re3 Be6 23. Qd2 Rac8 24. Re2 Qxd2 25. Rxd2 f6 26. Nd3 Bf7 27. Nc5 Rfe8 28. a3 Re7 29. Rg3 Re1+ 30. Ka2 Bg6 31. a4 bxa4 {[%emt 1:44:57]} 32. Nxa4 {[%emt 1:28:05]} Bb1+ {[%emt 0:00:30]} 33. Ka3 {[%emt 0:00:30]} Bc2 {[%emt 0:00:30]} 34. b3 {[%emt 0:00:30]} Bg6 {[%emt 0:00:30]} 35. Rc3 {[%emt 0:00:30]} Rc1 {[%emt 0:00:30]} 36. Rxc8+ {[%emt 0:00:30]} Rxc8 {[%emt 0:00:30]} 37. Nc5 {[%emt 0:00:30]} Re8 {[%emt 0:00:30]} 38. Kb4 {[%emt 0:00:30]} Re7 {[%emt 0:00:30]} 39. Ra2 {[%emt 0:00:29]} Bb1 {[%emt 0:00:30]} 40. Ra6 {[%emt 0:00:00]} Kf7 {[%emt 0:00:00]} 41. f3 {[%emt 0:03:56]} Bc2 {[%emt 0:04:33]} 42. Ra1 {[%emt 0:01:30]} Bg6 {[%emt 0:03:30]} 43. Kb5 {[%emt 0:02:30]} h5 {[%emt 0:06:05]} 44. Kc6 {[%emt 0:02:30]} hxg4 {[%emt 0:01:59]} 45. fxg4 {[%emt 0:00:00]} Be4 {[%emt 0:09:34]} 46. Nxe4 {[%emt 0:01:00]} dxe4 {[%emt 0:04:35]} 47. d5 {[%emt 0:00:30]} e3 {[%emt 0:00:00]} 48. d6 {[%emt 0:01:30]} Re5 {[%emt 0:02:59]} 49. Rxa7+ {[%emt 0:07:30]} Kg6 {[%emt 0:01:24]} 50. d7 {[%emt 0:00:30]} e2 {[%emt 0:00:11]} 51. Ra1 {[%emt 0:00:00]} Re6+ {[%emt 0:00:46]} 52. Kc7 {[%emt 0:00:00]} e1=Q {[%emt 0:01:08]} 53. Rxe1 {[%emt 0:00:30]} Rxe1 {[%emt 0:00:18]} 54. d8=Q {[%emt 0:00:00]} Re5 {[%emt 0:00:27]} 55. b4 {[%emt 0:00:00]} Kg5 {[%emt 0:00:49]} 56. Qd7 {[%emt 0:00:30]} g6 {[%emt 0:00:09]} 57. b5 {[%emt 0:00:00]} f5 {[%emt 0:01:03]} 58. gxf5 {[%emt 0:00:00]} gxf5 {[%emt 0:00:00]} 59. b6 {[%emt 0:00:30]} Rc5+ {[%emt 0:00:00]} 60. Kd8 {[%emt 0:00:00]} 1-0

[Event "Turkish Super League 2019"]
[Site "Konya"]
[Date "2019.07.23"]
[Round "7"]
[White "Visakh N R"]
[Black "Can, Emre"]
[Result "1/2-1/2"]
[ECO "A65"]
[WhiteElo "2526"]
[BlackElo "2595"]
[Annotator "ChessBase"]
[PlyCount "91"]
[EventDate "2019.07.17"]
[EventType "team-tourn"]
[EventCountry "TUR"]
[SourceTitle "playchess.com"]
[Source "ChessBase"]
[SourceQuality "1"]
[TimeControl "40/5400+30:1800+30"]

1. d4 Nf6 2. c4 c5 3. d5 e6 4. Nc3 exd5 5. cxd5 d6 6. e4 g6 7. Nge2 Bg7 8. Ng3 O-O 9. Be2 Na6 10. O-O Nc7 11. Bg5 h6 12. Be3 a6 13. Qd2 Kh7 14. f4 Re8 15. Rad1 b5 16. e5 Ng4 17. Bxg4 Bxg4 18. Rde1 dxe5 19. d6 Ne6 20. fxe5 Bxe5 21. Rxf7+ Kg8 22. Ref1 Ng5 23. Bxg5 Qxg5 24. Qxg5 hxg5 25. Nd5 Bxd6 26. Rb7 Be5 27. Ne7+ Kg7 28. Nc6+ Kg8 29. Nxe5 Rxe5 30. Rf6 Bf5 31. Nxf5 Rxf5 32. Rxg6+ Kf8 33. h3 c4 34. Rh7 Rc5 35. Rh8+ Kf7 36. Rxa8 Kxg6 37. Rxa6+ Kf5 {[%emt 1:29:51]} 38. Ra5 {[%emt 1:43:24]} Re5 {[%emt 0:00:30]} 39. Kf2 {[%emt 0:00:30]} Ke4 {[%emt 0:00:38]} 40. a4 {[%emt 0:00:00]} bxa4 {[%emt 0:00:40]} 41. Rxa4 {[%emt 0:05:36]} Kd3 {[%emt 0:00:51]} 42. Ra3+ {[%emt 0:00:30]} Kd4 {[%emt 0:00:30]} 43. Rc3 {[%emt 0:05:30]} Re8 {[%emt 0:06:30]} 44. Rc2 {[%emt 0:04:30]} Kd3 {[%emt 0:01:30]} 45. Rc3+ {[%emt 0:00:00]} Kd4 {[%emt 0:00:00]} 46. Rc2 {[%emt 0:01:00]} 1/2-1/2